bitfinex-derivatives/quotes_BNBF0:USTF0_20250630
["timestamp","ask_amount","ask_price","bid_price","bid_amount"]
[1751277969147,1.0023129,652.03,651.08,0.26707598]
[1751277969447,1.0023129,652.02,651.08,0.26707598]
[1751277969649,1.0023129,652.01,651.08,0.26707598]
[1751277969848,1.0023129,652.0,651.08,0.26707598]
[1751277970148,1.0023129,651.99,651.08,0.26707598]
[1751277970350,1.0023129,651.98,651.08,0.26707598]
[1751277970547,1.0023129,651.97,651.08,0.26707598]
[1751277970748,1.0023129,651.96,651.08,0.26707598]
[1751277970944,1.0023129,651.95,651.08,0.26707598]
[1751277971148,1.0023129,651.94,651.08,0.26707598]
[1751277971346,1.0023129,651.93,651.08,0.26707598]
[1751277971546,1.1410294,652.21,651.08,0.26707598]
[1751277971547,1.0023129,651.92,651.08,0.26707598]
[1751277971748,1.0023129,651.91,651.08,0.26707598]
[1751277971952,1.0023129,651.9,651.08,0.26707598]
[1751277972249,1.0023129,651.89,651.08,0.26707598]
[1751277972450,1.0023129,651.88,651.08,0.26707598]
[1751277972648,1.0023129,651.87,651.08,0.26707598]
[1751277972948,1.1410294,652.22,651.08,0.26707598]
[1751277973151,3.2502126,652.21,651.08,0.26707598]
[1751277973347,2.1091832,652.2,651.08,0.26707598]
[1751277973550,2.1091832,652.19,651.08,0.26707598]
[1751277973750,2.1091832,652.18,651.08,0.26707598]
[1751277973948,2.1091832,652.17,651.08,0.26707598]
[1751277974148,2.1091832,652.16,651.08,0.26707598]
[1751277974351,2.1091832,652.15,651.08,0.26707598]
[1751277974548,2.1091832,652.14,651.09,2.2926254]
[1751277974748,2.1091832,652.13,651.09,2.2926254]
[1751277974952,1.0017693,652.12,651.08,0.26707598]
[1751277975152,1.0017693,652.11,651.08,0.26707598]
[1751277975354,1.0017693,652.1,651.08,0.26707598]
[1751277975553,1.0017693,652.09,651.08,0.26707598]
[1751277975753,1.0017693,652.08,651.08,0.26707598]
[1751277976052,1.0017693,652.07,651.08,0.26707598]
[1751277976248,1.0017693,652.06,651.08,0.26707598]
[1751277976448,1.0017693,652.05,651.08,0.26707598]
[1751277976754,1.0017693,652.04,651.13,2.2926254]
[1751277976950,1.0017693,652.03,651.12,2.2926254]
[1751277977150,1.3370357,652.34,651.14,2.2926254]
[1751277977352,3.4432291,652.33,651.14,2.2926254]
[1751277977550,3.4432291,652.32,651.14,2.2926254]
[1751277977750,1.1410294,652.35,651.08,0.26707598]
[1751277977751,3.4432291,652.31,651.17,2.2926254]
[1751277977956,3.4432291,652.3,651.17,2.2926254]
[1751277978156,3.4432291,652.29,651.15,2.2926254]
[1751277978353,3.4432291,652.28,651.12,2.2926254]
[1751277978550,3.4432291,652.27,651.09,2.2926254]
[1751277978852,3.4432291,652.26,651.09,2.2926254]
[1751277979055,3.4432291,652.25,651.09,2.2926254]
[1751277979252,3.4432291,652.24,651.08,0.26707598]
[1751277979456,3.4432291,652.23,651.08,0.26707598]
[1751277979657,3.4432291,652.22,651.08,0.26707598]
[1751277979857,3.4432291,652.21,651.09,2.2926254]
[1751277980057,3.4432291,652.2,651.09,2.2926254]
[1751277980256,3.4432291,652.19,651.08,0.26707598]
[1751277980452,2.1061934,652.18,651.08,0.26707598]
[1751277980657,2.1061934,652.17,651.08,0.26707598]
[1751277980958,2.1061934,652.16,651.08,0.26707598]
[1751277981159,2.1061934,652.15,651.08,0.26707598]
[1751277981360,2.1061934,652.14,651.08,0.26707598]
[1751277981554,2.1061934,652.13,651.08,0.26707598]
[1751277981757,2.1061934,652.12,651.08,0.26707598]
[1751277981959,2.1061934,652.11,651.08,0.26707598]
[1751277982255,2.1061934,652.1,651.08,0.26707598]
[1751277982454,2.1061934,652.09,651.08,0.26707598]
[1751277982655,2.1061934,652.08,651.08,0.26707598]
[1751277982954,2.1061934,652.07,651.08,0.26707598]
[1751277983160,2.1061934,652.06,651.08,0.26707598]
[1751277983357,2.1061934,652.05,651.08,0.26707598]
[1751277983558,2.1061934,652.04,651.08,0.26707598]
[1751277983756,2.1061934,652.03,651.08,0.26707598]
[1751277983959,2.1061934,652.02,651.08,0.26707598]
[1751277984163,2.1061934,652.01,651.08,0.26707598]
[1751277984363,2.1061934,652.0,651.08,0.26707598]
[1751277984660,2.1061934,651.99,651.08,0.26707598]
[1751277984863,2.1061934,651.98,651.08,0.26707598]
[1751277985064,2.1061934,651.97,651.08,0.26707598]
[1751277985264,1.0007454,651.96,651.08,0.26707598]
[1751277985563,1.0007454,651.95,651.08,0.26707598]
[1751277985861,1.0007454,651.94,651.08,0.26707598]
[1751277986064,1.0007454,651.93,651.08,0.26707598]
[1751277986364,1.3361191,652.23,651.08,0.26707598]
[1751277986565,3.44024505,652.22,651.08,0.26707598]
[1751277986765,3.44024505,652.21,651.08,0.26707598]
[1751277986963,3.44024505,652.2,651.08,0.26707598]
[1751277987266,3.44024505,652.19,651.08,0.26707598]
[1751277987468,2.10412595,652.18,651.08,0.26707598]
[1751277987764,2.10412595,652.17,651.08,0.26707598]
[1751277987968,2.10412595,652.16,651.08,0.26707598]
[1751277988267,2.10412595,652.15,651.08,0.26707598]
[1751277988564,2.10412595,652.14,651.08,0.26707598]
[1751277988768,2.10412595,652.13,651.08,0.26707598]
[1751277988968,2.10412595,652.12,651.08,0.26707598]
[1751277989168,2.10412595,652.11,651.08,0.26707598]
[1751277989366,2.10412595,652.1,651.08,0.26707598]
[1751277989567,2.10412595,652.09,651.08,0.26707598]
[1751277989765,2.10412595,652.08,651.08,0.26707598]
[1751277989968,2.10412595,652.07,651.08,0.26707598]
[1751277990266,2.10412595,652.06,651.08,0.26707598]
[1751277990468,2.10412595,652.05,651.08,0.26707598]
[1751277990766,2.10412595,652.04,651.08,0.26707598]
[1751277990964,2.10412595,652.03,651.08,0.26707598]
[1751277991169,2.10412595,652.02,651.08,0.26707598]
[1751277991366,2.10412595,652.01,651.08,0.26707598]
[1751277991565,2.10412595,652.0,651.08,0.26707598]
[1751277991765,2.10412595,651.99,651.08,0.26707598]
[1751277991965,2.10412595,651.98,651.08,0.26707598]
[1751277992169,2.10412595,651.97,651.08,0.26707598]
[1751277992370,2.10412595,651.96,651.08,0.26707598]
[1751277992667,2.10412595,651.95,651.08,0.26707598]
[1751277992969,0.99921685,651.94,651.08,0.26707598]
[1751277993270,1.3363402,652.26,651.08,0.26707598]
[1751277993569,3.44113468,652.25,651.08,0.26707598]
[1751277993769,3.44113468,652.24,651.08,0.26707598]
[1751277993971,3.44113468,652.23,651.08,0.26707598]
[1751277994265,1.1410294,652.28,651.08,0.26707598]
[1751277994266,3.44113468,652.22,651.08,0.26707598]
[1751277994469,1.1410294,652.18,651.08,0.26707598]
[1751277994667,3.44113468,652.17,651.08,0.26707598]
[1751277994867,3.44113468,652.16,651.08,0.26707598]
[1751277995066,2.10479448,652.15,651.08,0.26707598]
[1751277995268,2.10479448,652.14,651.08,0.26707598]
[1751277995567,2.10479448,652.13,651.08,0.26707598]
[1751277995772,2.10479448,652.12,651.08,0.26707598]
[1751277996070,2.10479448,652.11,651.08,0.26707598]
[1751277996272,2.10479448,652.1,651.08,0.26707598]
[1751277996571,2.10479448,652.09,651.08,0.26707598]
[1751277996771,2.10479448,652.08,651.08,0.26707598]
[1751277996971,2.10479448,652.07,651.08,0.26707598]
[1751277997173,2.10479448,652.06,651.08,0.26707598]
[1751277997368,2.10479448,652.05,651.08,0.26707598]
[1751277997569,1.1410294,652.18,651.08,0.26707598]
[1751277997570,2.10479448,652.04,651.08,0.26707598]
[1751277997769,2.10479448,652.03,651.08,0.26707598]
[1751277997971,2.10479448,652.02,651.08,0.26707598]
[1751277998172,2.10479448,652.01,651.08,0.26707598]
[1751277998376,2.10479448,652.0,651.08,0.26707598]
[1751277998573,2.10479448,651.99,651.08,0.26707598]
[1751277998773,2.10479448,651.98,651.08,0.26707598]
[1751277998974,2.10479448,651.97,651.08,0.26707598]
[1751277999274,2.10479448,651.96,651.08,0.26707598]
[1751277999574,0.99937558,651.95,651.08,0.26707598]
[1751277999771,0.99937558,651.94,651.08,0.26707598]
[1751277999974,0.99937558,651.93,651.08,0.26707598]
[1751278000174,0.99937558,651.92,651.08,0.26707598]
[1751278000371,0.99937558,651.91,651.08,0.26707598]
[1751278000569,0.99937558,651.9,651.08,0.26707598]
[1751278000773,1.1410294,652.17,651.08,0.26707598]
[1751278000774,0.99937558,651.89,651.08,0.26707598]
[1751278001075,0.99937558,651.88,651.08,0.26707598]
[1751278001277,0.99937558,651.87,651.08,0.26707598]
[1751278001476,0.99937558,651.86,651.08,0.26707598]
[1751278001772,0.99937558,651.85,651.08,0.26707598]
[1751278001971,0.99937558,651.84,651.08,0.26707598]
[1751278002174,1.3371519,652.15,651.08,0.26707598]
[1751278002372,2.1062804,652.14,651.08,0.26707598]
[1751278002572,2.1062804,652.13,651.08,0.26707598]
[1751278002776,2.1062804,652.12,651.08,0.26707598]
[1751278003075,2.1062804,652.11,651.08,0.26707598]
[1751278003277,2.1062804,652.1,651.08,0.26707598]
[1751278003478,2.1062804,652.09,651.08,0.26707598]
[1751278003678,2.1062804,652.08,651.08,0.26707598]
[1751278003878,2.1062804,652.07,651.08,0.26707598]
[1751278004077,2.1062804,652.06,651.08,0.26707598]
[1751278004378,2.1062804,652.05,651.08,0.26707598]
[1751278004582,2.1062804,652.04,651.08,0.26707598]
[1751278004878,2.1062804,652.03,651.08,0.26707598]
[1751278005081,2.1062804,652.02,651.08,0.26707598]
[1751278005281,2.1062804,652.01,651.08,0.26707598]
[1751278005481,2.1062804,652.0,651.08,0.26707598]
[1751278005682,2.1062804,651.99,651.08,0.26707598]
[1751278005884,2.1062804,651.98,651.08,0.26707598]
[1751278006183,2.1062804,651.97,651.08,0.26707598]
[1751278006384,2.1062804,651.96,651.08,0.26707598]
[1751278006684,1.0000875,651.95,651.08,0.26707598]
[1751278006881,1.0000875,651.94,651.08,0.26707598]
[1751278007083,1.0000875,651.93,651.08,0.26707598]
[1751278007281,1.0000875,651.92,651.08,0.26707598]
[1751278007484,1.0000875,651.91,651.08,0.26707598]
[1751278007684,1.0000875,651.9,651.08,0.26707598]
[1751278007985,1.0000875,651.89,651.08,0.26707598]
[1751278008186,1.0000875,651.88,651.08,0.26707598]
[1751278008387,1.0000875,651.87,651.08,0.26707598]
[1751278008587,1.0000875,651.86,651.08,0.26707598]
[1751278008787,1.0000875,651.85,651.08,0.26707598]
[1751278009084,1.3387017,652.15,651.08,0.26707598]
[1751278009286,2.108686,652.14,651.08,0.26707598]
[1751278009586,2.108686,652.13,651.08,0.26707598]
[1751278009886,2.108686,652.12,651.08,0.26707598]
[1751278010186,2.108686,652.11,651.08,0.26707598]
[1751278010384,2.108686,652.1,651.08,0.26707598]
[1751278010583,2.108686,652.09,651.08,0.26707598]
[1751278010786,2.108686,652.08,651.08,0.26707598]
[1751278011086,2.108686,652.07,651.08,0.26707598]
[1751278011286,1.001056,652.06,651.08,0.26707598]
[1751278011484,1.001056,652.05,651.08,0.26707598]
[1751278011683,1.001056,652.04,651.08,0.26707598]
[1751278011884,1.001056,652.03,651.1,2.2926254]
[1751278012083,1.001056,652.02,651.1,2.2926254]
[1751278012286,1.001056,652.01,651.1,2.2926254]
[1751278012586,1.001056,652.0,651.11,2.2926254]
[1751278012787,1.001056,651.99,651.11,2.2926254]
[1751278012988,1.001056,651.98,651.11,2.2926254]
[1751278013189,1.001056,651.97,651.1,2.2926254]
[1751278013389,1.001056,651.96,651.11,2.2926254]
[1751278013690,1.001056,651.95,651.11,2.2926254]
[1751278013892,1.001056,651.94,651.11,2.2926254]
[1751278014084,1.001056,651.93,651.11,2.2926254]
[1751278014384,1.001056,651.93,651.08,0.26707598]
[1751278014385,1.001056,651.92,651.12,2.2926254]
[1751278014586,1.001056,651.91,651.09,2.2926254]
[1751278014791,1.001056,651.9,651.09,2.2926254]
[1751278014990,1.001056,651.89,651.09,2.2926254]
[1751278015286,1.001056,651.88,651.08,0.26707598]
[1751278015486,1.001056,651.87,651.08,0.26707598]
[1751278015689,1.001056,651.86,651.08,0.26707598]
[1751278015890,1.001056,651.85,651.08,0.26707598]
[1751278016085,1.001056,651.84,651.08,0.26707598]
[1751278016389,1.001056,651.83,651.09,2.2926254]
[1751278016593,1.001056,651.82,651.09,2.2926254]
[1751278016792,1.1410294,652.12,651.09,2.2926254]
[1751278016988,2.1119429,652.11,651.09,2.2926254]
[1751278017191,2.1119429,652.1,651.08,0.26707598]
[1751278017388,2.1119429,652.09,651.08,0.26707598]
[1751278017589,2.1119429,652.08,651.08,0.26707598]
[1751278017891,2.1119429,652.07,651.08,0.26707598]
[1751278018089,2.1119429,652.06,651.08,0.26707598]
[1751278018293,2.1119429,652.05,651.08,0.26707598]
[1751278018490,2.1119429,652.04,651.08,0.26707598]
[1751278018690,2.1119429,652.03,651.08,0.26707598]
[1751278018894,2.1119429,652.02,651.08,0.26707598]
[1751278019094,1.1410294,652.11,651.08,0.26707598]
[1751278019095,1.0027533,652.01,651.09,5.556]
[1751278019291,1.0027533,652.0,651.09,5.556]
[1751278019495,1.1410294,652.11,651.09,5.556]
[1751278019496,1.0027533,651.99,651.09,5.556]
[1751278019697,1.0027533,651.98,651.09,7.8486254]
[1751278019999,2.1127352,651.97,651.09,5.556]
[1751278020196,2.1127352,651.96,651.09,5.556]
[1751278020398,2.1127352,651.95,651.09,5.556]
[1751278020596,1.0027533,651.94,651.09,5.556]
[1751278020900,1.0027533,651.93,651.09,5.556]
[1751278021096,1.0027533,651.92,651.09,5.556]
[1751278021296,1.0027533,651.91,651.1,1.227]
[1751278021496,1.0027533,651.9,651.1,3.089]
[1751278021700,1.0027533,651.89,651.1,3.089]
[1751278021997,1.0027533,651.88,651.11,2.219]
[1751278022201,1.0027533,651.87,651.11,2.219]
[1751278022397,1.0027533,651.86,651.11,2.219]
[1751278022595,1.0027533,651.85,651.12,2.2926254]
[1751278022799,1.0027533,651.84,651.11,4.5116254]
[1751278023000,1.0027533,651.83,651.11,4.5116254]
[1751278023203,1.0027533,651.82,651.11,4.5116254]
[1751278023502,1.0027533,651.81,651.11,4.5116254]
[1751278023698,1.0027533,651.8,651.11,2.219]
[1751278023997,1.1410294,652.11,651.11,2.219]
[1751278024198,2.1136767,652.1,651.11,4.5116254]
[1751278024501,2.1136767,652.09,651.11,2.219]
[1751278024698,2.1136767,652.08,651.11,2.219]
[1751278025002,2.1136767,652.07,651.11,2.219]
[1751278025202,2.1136767,652.06,651.11,2.219]
[1751278026802,2.1136767,651.99,651.11,2.219]
[1751278027002,2.1136767,651.98,651.11,2.219]
[1751278027303,2.1136767,651.97,651.11,2.219]
[1751278027503,2.1136767,651.96,651.11,2.219]
[1751278027703,2.1137304,651.95,651.11,4.5116254]
[1751278027901,1.0035533,651.94,651.13,2.2926254]
[1751278028106,1.0035533,651.93,651.13,2.2926254]
[1751278028302,1.0035533,651.92,651.13,2.2926254]
[1751278028502,1.0035533,651.91,651.13,2.2926254]
[1751278028702,1.0035533,651.9,651.11,4.5116254]
[1751278028901,1.0035533,651.89,651.12,2.2926254]
[1751278029206,1.0035533,651.88,651.14,2.2926254]
[1751278029406,1.0035533,651.87,651.14,2.2926254]
[1751278029703,1.0035533,651.86,651.11,2.219]
[1751278029903,1.0035533,651.85,651.11,2.219]
[1751278030205,1.0035533,651.84,651.11,2.219]
[1751278030405,1.0035533,651.83,651.11,2.219]
[1751278030706,1.0035533,651.82,651.11,2.219]
[1751278031006,1.0035533,651.81,651.11,2.219]
[1751278031305,1.0035533,651.8,651.11,2.219]
[1751278031506,1.1410294,652.17,651.11,2.219]
[1751278031807,3.4524786,652.16,651.11,2.219]
[1751278032006,2.1102672,652.15,651.11,2.219]
[1751278032206,2.1102672,652.14,651.11,2.219]
[1751278032502,2.1102672,652.13,651.11,2.219]
[1751278032711,2.1102672,652.12,651.11,2.219]
[1751278033007,2.1102672,652.11,651.11,2.219]
[1751278033203,2.1102672,652.1,651.11,2.219]
[1751278033404,2.1102672,652.09,651.11,2.219]
[1751278033601,2.1102672,652.08,651.11,2.219]
[1751278033907,2.1102672,652.07,651.11,2.219]
[1751278034107,2.1102672,652.06,651.11,2.219]
[1751278034306,2.1102672,652.05,651.11,2.219]
[1751278034503,2.1102672,652.04,651.12,2.2926254]
[1751278034703,2.1102672,652.03,651.15,2.2926254]
[1751278034901,2.1102672,652.02,651.16,2.2926254]
[1751278035101,2.1102672,652.01,651.23,2.2926254]
[1751278035306,1.0038498,652.0,651.22,2.2926254]
[1751278035505,1.3435773,652.35,651.22,2.2926254]
[1751278035705,3.4549862,652.34,651.22,2.2926254]
[1751278036005,3.4549862,652.33,651.24,2.2926254]
[1751278036309,3.4549862,652.32,651.23,2.2926254]
[1751278036508,3.4549862,652.31,651.25,1.369]
[1751278036707,3.4549862,652.3,651.25,1.369]
[1751278036906,3.4549862,652.29,651.25,1.369]
[1751278037108,3.4549862,652.28,651.25,1.369]
[1751278037309,3.4549862,652.27,651.25,1.369]
[1751278037509,3.4549862,652.26,651.25,1.369]
[1751278037703,1.1410294,652.36,651.25,1.369]
[1751278037704,2.1114089,652.25,651.25,1.369]
[1751278038008,2.1114089,652.24,651.25,1.369]
[1751278038205,2.1114089,652.23,651.25,1.369]
[1751278038403,2.1114089,652.22,651.26,1.372]
[1751278038605,2.1114089,652.21,651.26,2.907]
[1751278038806,2.1114089,652.2,651.27,2.176]
[1751278039007,2.1114089,652.19,651.27,2.176]
[1751278039310,2.1114089,652.18,651.27,2.176]
[1751278039505,2.1114089,652.17,651.27,2.176]
[1751278039809,2.1114089,652.16,651.32,2.2926254]
[1751278040110,2.1114089,652.15,651.32,2.2926254]
[1751278040307,2.1114089,652.14,651.32,2.2926254]
[1751278040512,2.1114089,652.13,651.27,2.176]
[1751278040808,2.1114089,652.12,651.27,2.176]
[1751278041013,2.1114089,652.11,651.27,2.176]
[1751278041210,2.1114089,652.1,651.27,2.176]
[1751278041407,2.1114089,652.09,651.27,2.176]
[1751278041612,1.0038957,652.08,651.3,2.2926254]
[1751278041813,1.8406138,652.44,651.3,2.2926254]
[1751278042113,3.9510447,652.43,651.31,2.2926254]
[1751278042307,3.9510447,652.42,651.31,2.2926254]
[1751278042513,3.9510447,652.41,651.32,1.877]
[1751278042710,3.9510447,652.4,651.32,4.1696254]
[1751278042909,3.9510447,652.39,651.33,2.2926254]
[1751278043112,3.9510447,652.38,651.32,1.877]
[1751278043315,3.4527589,652.37,651.32,1.877]
[1751278043513,3.4527589,652.36,651.32,1.877]
[1751278043815,3.4527589,652.35,651.32,1.877]
[1751278044010,3.4527589,652.34,651.32,1.877]
[1751278044211,3.4527589,652.33,651.32,1.877]
[1751278044412,3.4527589,652.32,651.32,1.877]
[1751278044610,3.4527589,652.31,651.32,1.877]
[1751278044812,3.4527589,652.3,651.32,1.877]
[1751278045011,3.4527589,652.29,651.32,1.877]
[1751278045211,2.1104309,652.28,651.33,1.822]
[1751278045416,2.1104309,652.27,651.33,1.822]
[1751278045715,2.1104309,652.26,651.33,1.822]
[1751278045911,2.1104309,652.25,651.33,1.822]
[1751278046116,1.0039492,652.24,651.33,1.822]
[1751278046316,1.0039492,652.23,651.33,1.822]
[1751278046518,1.1410294,652.36,651.33,1.822]
[1751278046519,1.0039492,652.22,651.33,1.822]
[1751278046713,1.0039492,652.21,651.33,1.822]
[1751278046922,1.0039492,652.2,651.33,1.822]
[1751278047120,1.0039492,652.19,651.33,1.822]
[1751278047421,1.0039492,652.18,651.33,1.822]
[1751278047620,1.0039492,652.17,651.33,1.822]
[1751278047818,1.0039492,652.16,651.33,1.822]
[1751278048018,1.0039492,652.15,651.33,1.822]
[1751278048221,1.0039492,652.14,651.33,1.822]
[1751278048421,1.0039492,652.13,651.33,1.822]
[1751278048621,1.0039492,652.12,651.33,1.822]
[1751278048816,1.1410294,652.45,651.33,1.822]
[1751278049121,1.0022888,652.44,651.33,1.822]
[1751278049320,1.0022888,652.43,651.33,1.822]
[1751278049520,1.0022888,652.42,651.33,1.822]
[1751278049717,1.0022888,652.41,651.33,1.822]
[1751278049918,1.0022888,652.4,651.33,1.822]
[1751278050117,1.0022888,652.39,651.33,1.822]
[1751278050317,1.0022888,652.38,651.33,1.822]
[1751278050521,1.0022888,652.37,651.33,1.822]
[1751278050721,1.0022888,652.36,651.33,1.822]
[1751278050916,1.0022888,652.35,651.33,1.822]
[1751278051118,1.0022888,652.34,651.33,1.822]
[1751278051320,1.0022888,652.33,651.33,1.822]
[1751278051518,1.0022888,652.32,651.33,1.822]
[1751278051719,1.0022888,652.31,651.33,1.822]
[1751278052018,1.0022888,652.3,651.34,1.504]
[1751278052217,1.0022888,652.29,651.34,1.504]
[1751278052418,1.0022888,652.28,651.34,1.504]
[1751278052621,1.0022888,652.27,651.34,1.504]
[1751278052820,1.0022888,652.26,651.34,1.504]
[1751278053021,1.0022888,652.25,651.34,1.504]
[1751278053323,1.0022888,652.24,651.34,1.504]
[1751278053522,1.0022888,652.23,651.34,1.504]
[1751278053722,1.0022888,652.22,651.34,1.504]
[1751278053924,1.0022888,652.21,651.34,1.504]
[1751278054123,1.0022888,652.2,651.34,1.504]
[1751278054324,1.0022888,652.19,651.34,1.504]
[1751278054525,1.0022888,652.18,651.34,1.504]
[1751278054723,1.0022888,652.17,651.34,1.504]
[1751278054926,1.0022888,652.16,651.34,1.504]
[1751278055123,1.0022888,652.15,651.34,1.504]
[1751278055322,1.0022888,652.14,651.34,1.504]
[1751278055523,1.0022888,652.13,651.34,1.504]
[1751278055726,1.0022888,652.12,651.34,1.504]
[1751278055928,1.0022888,652.11,651.34,1.504]
[1751278056123,1.0022888,652.1,651.34,1.504]
[1751278056424,1.0022888,652.09,651.35,1.384]
[1751278056628,1.0022888,652.08,651.35,1.384]
[1751278056927,1.0022888,652.07,651.35,1.384]
[1751278057127,0.2668374,652.83,651.35,1.384]
[1751278057128,1.1410294,652.37,651.35,1.384]
[1751278057428,2.1419596,652.36,651.35,1.384]
[1751278057626,1.0009302,652.35,651.35,1.384]
[1751278057929,1.1410294,652.31,651.35,1.384]
[1751278058125,1.0009302,652.3,651.35,1.384]
[1751278058330,1.0009302,652.29,651.35,1.384]
[1751278058532,1.0009302,652.28,651.35,1.384]
[1751278058730,1.0009302,652.27,651.35,1.384]
[1751278058929,1.0009302,652.26,651.36,1.464]
[1751278059129,1.0009302,652.25,651.36,1.464]
[1751278059329,1.0009302,652.24,651.36,1.464]
[1751278059530,1.0009302,652.23,651.36,1.464]
[1751278059732,1.0009302,652.22,651.36,1.464]
[1751278059932,1.0009302,652.21,651.36,1.464]
[1751278060128,1.0009302,652.2,651.36,1.464]
[1751278060329,1.0009302,652.19,651.36,1.464]
[1751278060530,1.0009302,652.18,651.36,1.464]
[1751278060729,1.0009302,652.17,651.36,1.464]
[1751278060931,1.0009302,652.16,651.36,1.464]
[1751278061132,1.0009302,652.15,651.36,1.464]
[1751278061331,1.0009302,652.14,651.36,1.464]
[1751278061530,1.0009302,652.13,651.36,1.464]
[1751278061733,1.0009302,652.12,651.36,1.464]
[1751278061932,1.0009302,652.11,651.36,1.464]
[1751278062134,1.0009302,652.1,651.36,1.464]
[1751278062330,1.0009302,652.09,651.36,1.464]
[1751278062534,1.0009302,652.08,651.36,1.464]
[1751278062731,1.0009302,652.07,651.36,1.464]
[1751278063029,1.0009302,652.06,651.36,1.464]
[1751278063229,1.0009302,652.05,651.36,1.464]
[1751278063434,1.0009302,652.04,651.36,1.464]
[1751278063634,1.0009302,652.03,651.36,1.464]
[1751278063838,1.0009302,652.02,651.36,1.464]
[1751278064137,1.0009302,652.01,651.36,1.464]
[1751278064336,1.0009302,652.0,651.36,1.464]
[1751278064537,1.0009302,651.99,651.36,1.464]
[1751278064736,1.0009302,651.98,651.36,1.464]
[1751278064937,1.1044776,652.37,651.36,1.464]
[1751278064938,1.1044776,652.36,651.36,1.464]
[1751278065141,2.1051632,652.35,651.36,1.464]
[1751278065337,1.0006856,652.34,651.36,1.464]
[1751278065537,1.0006856,652.33,651.36,1.464]
[1751278065737,1.1410294,652.38,651.36,1.464]
[1751278065738,1.0006856,652.32,651.36,1.464]
[1751278065936,2.104975,652.31,651.36,1.464]
[1751278066141,2.104975,652.3,651.36,1.464]
[1751278066337,2.104975,652.29,651.36,1.464]
[1751278066539,2.104975,652.28,651.36,1.464]
[1751278066843,1.0006856,652.27,651.36,1.464]
[1751278067145,1.0006856,652.26,651.36,1.464]
[1751278067339,1.0006856,652.25,651.36,1.464]
[1751278067539,1.0006856,652.24,651.36,1.464]
[1751278067740,1.0006856,652.23,651.36,1.464]
[1751278068040,1.0006856,652.22,651.36,1.464]
[1751278068238,1.0006856,652.21,651.36,1.464]
[1751278068444,1.0006856,652.2,651.36,1.464]
[1751278068742,1.0006856,652.19,651.36,1.464]
[1751278068941,1.0006856,652.18,651.36,1.464]
[1751278069145,1.0006856,652.17,651.37,2.031]
[1751278069349,1.0006856,652.16,651.37,2.031]
[1751278069546,1.0006856,652.15,651.37,2.031]
[1751278069847,2.141715,652.14,651.38,2.466]
[1751278070048,1.0006856,652.13,651.38,2.466]
[1751278070342,1.0006856,652.12,651.38,2.466]
[1751278070551,1.0006856,652.11,651.38,2.466]
[1751278070743,2.2874254,652.52,651.38,2.466]
[1751278070744,1.0006856,652.1,651.38,2.466]
[1751278070944,1.0006856,652.09,651.38,2.466]
[1751278071143,1.0006856,652.08,651.38,2.466]
[1751278071344,1.0006856,652.07,651.38,2.466]
[1751278071544,1.0006856,652.06,651.38,2.466]
[1751278071747,1.0006856,652.05,651.38,2.466]
[1751278071944,1.0006856,652.04,651.38,2.466]
[1751278072149,2.1048977,652.03,651.38,2.466]
[1751278072350,2.1048977,652.02,651.38,2.466]
[1751278072546,2.1048977,652.01,651.38,2.466]
[1751278072746,2.1048977,652.0,651.38,2.466]
[1751278072946,2.1048977,651.99,651.38,2.466]
[1751278073152,2.1048977,651.98,651.38,2.466]
[1751278073450,2.1048977,651.97,651.38,2.466]
[1751278073646,1.0006856,651.96,651.38,2.466]
[1751278073850,1.0006856,651.95,651.38,2.466]
[1751278074050,1.0006856,651.94,651.38,2.466]
[1751278074246,1.0006856,651.93,651.38,2.466]
[1751278074446,1.0006856,651.92,651.38,2.466]
[1751278074749,1.0006856,651.91,651.38,2.466]
[1751278075045,2.2874254,652.87,651.38,2.466]
[1751278075046,1.0006856,651.9,651.38,2.466]
[1751278075246,1.0006856,651.89,651.38,2.466]
[1751278075451,1.0006856,651.88,651.38,2.466]
[1751278075651,1.0006856,651.87,651.38,2.466]
[1751278075850,1.0006856,651.86,651.38,2.466]
[1751278076051,1.0006856,651.85,651.38,2.466]
[1751278076351,1.0006856,651.84,651.38,2.466]
[1751278076554,1.0006856,651.83,651.38,2.466]
[1751278076748,1.0006856,651.82,651.38,2.466]
[1751278076953,1.0006856,651.81,651.38,2.466]
[1751278077150,1.0006856,651.8,651.38,2.466]